bitfinex/quotes_BTCUSD_20220105
["timestamp","ask_amount","ask_price","bid_price","bid_amount"]
[1641415092859,0.11304,44236.0,44235.0,0.28187827]
[1641415093459,0.002,44236.0,44235.0,0.65977727]
[1641415093758,0.002,44236.0,44235.0,1.79977727]
[1641415094212,0.056519,44238.0,44235.0,1.79977727]
[1641415094412,0.004,44249.0,44238.0,0.367899]
[1641415094610,0.004,44249.0,44239.0,0.44837834]
[1641415094817,0.056498,44256.0,44246.0,0.05457991]
[1641415095010,0.0001,44260.0,44250.0,0.0012506]
[1641415095312,0.05649,44257.0,44256.0,0.87551673]
[1641415095509,0.05649,44257.0,44256.0,0.55534666]
[1641415095914,0.05649,44257.0,44256.0,0.65534666]
[1641415096310,0.0577344,44257.0,44256.0,0.65534666]
[1641415096513,4.4e-06,44257.0,44256.0,1.35831754]
[1641415096815,0.01355008,44265.0,44259.0,0.56912485]
[1641415097112,0.00355008,44265.0,44264.0,0.00122011]
[1641415097310,0.0001,44280.0,44265.0,2.35]
[1641415097311,0.31384471,44280.0,44265.0,2.35]
[1641415097512,0.112955,44275.0,44272.0,0.25640594]
[1641415097712,0.112955,44275.0,44273.0,0.367899]
[1641415097713,0.056478,44275.0,44273.0,0.367899]
[1641415097959,0.112957,44277.0,44273.0,0.367899]
[1641415098152,0.31384471,44280.0,44273.0,0.367899]
[1641415098353,0.31384471,44280.0,44275.0,0.51435428]
[1641415098754,0.056473,44275.0,44271.0,0.26898918]
[1641415098954,0.056473,44275.0,44270.0,0.00129183]
[1641415099157,0.056473,44275.0,44271.0,0.367899]
[1641415099355,0.056473,44275.0,44270.0,0.00129183]
[1641415099555,0.056473,44275.0,44270.0,0.001]
[1641415099757,0.056473,44275.0,44270.0,0.52968653]
[1641415099954,0.112949,44275.0,44271.0,0.367899]
[1641415100154,0.112949,44275.0,44272.0,0.0005]
[1641415100155,0.0563727,44275.0,44272.0,0.0005]
[1641415100354,0.0563727,44275.0,44273.0,0.367899]
[1641415100758,0.056481,44272.0,44262.0,0.00128071]
[1641415100956,0.056481,44272.0,44256.0,0.30430912]
[1641415100957,0.05649,44265.0,44256.0,0.30430912]
[1641415101162,0.11298,44265.0,44256.0,0.30430912]
[1641415101360,0.05649,44265.0,44256.0,0.30430912]
[1641415101556,0.05621784,44265.0,44258.0,0.49633479]
[1641415101814,0.112995,44264.0,44258.0,0.49633479]
[1641415102013,0.162979,44263.0,44258.0,0.49633479]
[1641415102414,0.582979,44263.0,44258.0,0.49633479]
[1641415102818,0.056495,44260.0,44258.0,0.49633479]
[1641415103417,0.05769866,44260.0,44258.0,0.49633479]
[1641415103726,0.05769866,44260.0,44259.0,0.367899]
[1641415104216,0.05769866,44260.0,44259.0,0.362899]
[1641415105460,0.00120366,44260.0,44259.0,0.362899]
[1641415105652,0.00120366,44260.0,44259.0,0.007]
[1641415106051,0.05,44260.0,44259.0,0.007]
[1641415106852,0.05,44260.0,44256.0,0.57325177]
[1641415107052,0.112986,44259.0,44257.0,0.367828]
[1641415107651,0.112986,44259.0,44257.0,0.374828]
[1641415108252,0.112986,44259.0,44257.0,0.007]
[1641415108857,0.05,44258.0,44256.0,0.30430912]
[1641415109506,0.05,44258.0,44256.0,0.31230912]
[1641415109707,0.056492,44259.0,44257.0,0.367828]
[1641415109904,0.056492,44259.0,44257.0,0.61952439]
[1641415110109,0.542,44276.0,44257.0,0.46910825]
[1641415110110,0.112963,44266.0,44257.0,0.46910825]
[1641415110506,0.112963,44266.0,44257.0,0.10128025]
[1641415110704,0.112963,44266.0,44257.0,0.00128025]
[1641415111106,0.056482,44262.0,44257.0,0.00128025]
[1641415111309,0.056482,44262.0,44258.0,0.367828]
[1641415111705,0.056482,44262.0,44259.0,0.28268067]
[1641415112005,0.056482,44262.0,44260.0,0.367828]
[1641415112405,0.056482,44262.0,44260.0,0.77023651]
[1641415112808,0.056482,44262.0,44260.0,0.367828]
[1641415113062,0.056482,44262.0,44259.0,0.28268067]
[1641415113258,0.056482,44262.0,44250.0,0.10128407]
[1641415113460,0.05649509,44265.0,44252.0,0.28663696]
[1641415113461,0.056496,44259.0,44252.0,0.28663696]
[1641415114160,0.112992,44259.0,44252.0,0.28663696]
[1641415114360,0.162992,44259.0,44257.0,0.23799519]
[1641415114757,0.112992,44259.0,44257.0,0.23799519]
[1641415115158,0.05,44258.0,44257.0,0.23799519]
[1641415115361,0.112992,44259.0,44257.0,0.23799519]
[1641415115659,0.112992,44259.0,44257.0,0.24399519]
[1641415115858,0.05,44258.0,44257.0,0.24399519]
[1641415116273,0.112992,44259.0,44257.0,0.373828]
[1641415116459,0.056496,44259.0,44258.0,0.367828]
[1641415116728,0.05,44258.0,44257.0,0.006]
[1641415116918,0.05,44258.0,44247.0,0.24592876]
[1641415116919,0.417828,44258.0,44247.0,0.24592876]
[1641415117120,0.056499,44253.0,44245.0,0.24592876]
[1641415117321,0.42,44271.0,44245.0,0.24592876]
[1641415117322,0.11299751,44266.0,44255.0,0.00125992]
[1641415117521,0.42,44271.0,44265.0,0.75334573]
[1641415117522,0.056481,44268.0,44265.0,0.75334573]
[1641415117818,0.42,44271.0,44265.0,0.75334573]
[1641415118017,0.00121588,44274.0,44265.0,0.75334573]
[1641415118218,0.3739,44277.0,44266.0,0.93868579]
[1641415118219,0.7889,44277.0,44266.0,0.93868579]
[1641415118420,2.5563,44286.0,44270.0,0.00123167]
[1641415118619,0.112928,44282.0,44270.0,0.00123167]
[1641415118818,0.9209,44286.0,44275.0,0.00122425]
[1641415119418,0.056459,44282.0,44280.0,0.27627332]
[1641415119619,0.056459,44282.0,44280.0,0.27550733]
[1641415120020,0.056459,44282.0,44281.0,0.367828]
[1641415120653,0.056459,44282.0,44280.0,0.27550733]
[1641415121453,0.056459,44282.0,44281.0,0.367828]
[1641415121653,0.056455,44285.0,44281.0,0.467828]
[1641415122557,0.056455,44285.0,44280.0,0.28150733]
[1641415122955,0.056455,44285.0,44280.0,0.27550733]
[1641415123756,0.056455,44285.0,44280.0,0.28150733]
[1641415124200,0.056461,44283.0,44280.0,0.28150733]
[1641415124408,0.05646,44283.0,44280.0,0.28150733]
[1641415125000,0.05646,44283.0,44280.0,0.27550733]
[1641415125602,0.05646,44283.0,44280.0,0.28750733]
[1641415125804,0.107917,44283.0,44280.0,0.012]
[1641415126005,0.367828,44282.0,44280.0,0.012]
[1641415126207,0.24812868,44281.0,44280.0,0.012]
[1641415126405,0.367828,44281.0,44280.0,0.012]
[1641415126605,0.107917,44283.0,44280.0,0.012]
[1641415126805,0.367828,44282.0,44276.0,0.56145212]
[1641415127009,0.056463,44280.0,44276.0,0.56145212]
[1641415127205,0.056463,44280.0,44277.0,1.64510456]
[1641415127405,0.056463,44280.0,44278.0,0.33740709]
[1641415127605,0.056463,44280.0,44279.0,0.367828]
[1641415127968,0.056463,44280.0,44279.0,0.467828]
[1641415128164,0.056452,44283.0,44279.0,0.467828]
[1641415128360,0.056452,44283.0,44281.0,0.046]
[1641415128559,0.056452,44283.0,44282.0,0.367828]
[1641415128761,0.304,44289.0,44282.0,0.61844997]
[1641415128961,0.304,44289.0,44283.0,0.65132265]
[1641415129160,0.304,44289.0,44284.0,0.367828]
[1641415129161,0.360445,44289.0,44284.0,0.367828]
[1641415129361,0.360445,44289.0,44285.0,0.27490407]
[1641415129564,0.304,44289.0,44286.0,0.367828]
[1641415129963,0.304,44289.0,44287.0,0.53559635]
[1641415130176,7.173e-05,44297.0,44289.0,0.04]
[1641415130374,1.223e-05,44299.0,44296.0,0.00122828]
[1641415130567,0.01887964,44306.0,44299.0,0.367828]
[1641415130767,0.004,44309.0,44305.0,0.00121719]
[1641415130769,9.64e-06,44309.0,44305.0,0.00121719]
[1641415130976,0.004,44319.0,44309.0,0.367653]
[1641415131167,0.004,44319.0,44313.0,0.36887974]
[1641415131367,0.004,44319.0,44318.0,1.09155849]
[1641415131567,0.004,44319.0,44318.0,1.56049974]
[1641415131805,0.00175987,44324.0,44319.0,0.367653]
[1641415132208,0.00175987,44324.0,44319.0,0.72660773]
[1641415132604,0.00175987,44324.0,44323.0,0.00122336]
[1641415132805,0.00175987,44324.0,44323.0,0.36887636]
[1641415133308,0.27038496,44326.0,44324.0,0.359113]
[1641415133506,0.0041,44329.0,44325.0,0.367592]
[1641415133507,0.00143587,44329.0,44325.0,0.367592]
[1641415133805,0.00143587,44329.0,44318.0,2.35]
[1641415133806,0.00143587,44329.0,44328.0,2.71871957]
[1641415133807,3.587e-05,44329.0,44328.0,2.71871957]
[1641415134009,0.0374818,44332.0,44330.0,0.367592]
[1641415134207,0.0374818,44332.0,44331.0,0.567492]
[1641415134208,0.0375818,44332.0,44331.0,0.567492]
[1641415134607,0.0375818,44332.0,44331.0,0.467392]
[1641415134812,0.0375818,44332.0,44323.0,1.28127656]
[1641415135009,0.0375818,44332.0,44321.0,0.0012863]
[1641415135010,0.056499,44331.0,44324.0,0.367563]
[1641415135208,0.056499,44331.0,44321.0,0.0012863]
[1641415135472,0.056499,44331.0,44322.0,0.567563]
[1641415135672,0.056499,44331.0,44322.0,0.93064173]
[1641415135867,0.056499,44331.0,44322.0,2.20652536]
[1641415136068,0.051499,44331.0,44322.0,2.20652536]
[1641415136268,0.051499,44331.0,44322.0,2.85652536]
[1641415136467,0.0001,44331.0,44330.0,0.00129132]
[1641415136667,0.0001,44331.0,44330.0,2.71885432]
[1641415136868,0.0001,44331.0,44330.0,3.00320015]
[1641415137067,0.0001,44331.0,44330.0,3.10320015]
[1641415137568,0.0376818,44332.0,44330.0,3.10320015]
[1641415137569,0.0368914,44332.0,44331.0,0.367563]
[1641415137770,0.0349914,44332.0,44331.0,0.567563]
[1641415137968,0.0339914,44332.0,44331.0,0.667563]
[1641415138170,0.0176429,44336.0,44335.0,2.578785]
[1641415138471,0.3001,44347.0,44335.0,2.578785]
[1641415138472,0.0001,44338.0,44335.0,2.928785]
[1641415138672,0.04575834,44342.0,44340.0,0.0001]
[1641415138877,0.0001,44348.0,44344.0,0.567563]
[1641415139074,0.004,44359.0,44349.0,0.66929641]
[1641415139316,0.004,44359.0,44349.0,1.03675941]
[1641415139521,0.0001,44351.0,44349.0,1.13665941]
[1641415139718,0.0001,44351.0,44349.0,1.14165941]
[1641415139920,0.0001,44351.0,44349.0,1.2414594]
[1641415140121,0.0001,44351.0,44349.0,1.14145941]
[1641415140319,0.0001,44351.0,44349.0,1.14125941]
[1641415140720,0.0001,44351.0,44349.0,1.14105941]
[1641415140917,0.0001,44351.0,44349.0,1.7433136]
[1641415141121,0.0002,44350.0,44349.0,1.7432136]
[1641415141320,0.0002,44350.0,44349.0,1.7648136]
[1641415141522,0.00012806,44351.0,44350.0,0.367563]
[1641415141819,0.00012806,44351.0,44350.0,0.367463]
[1641415142024,0.10012806,44351.0,44349.0,1.3053506]
[1641415142220,0.10012806,44351.0,44349.0,1.3052506]
[1641415142221,0.05650106,44351.0,44349.0,1.3052506]
[1641415142426,0.00124177,44350.0,44349.0,1.3052506]
[1641415142621,0.05124177,44350.0,44349.0,0.008]
[1641415142819,1.01609913,44350.0,44342.0,0.2448916]
[1641415143063,0.112771,44348.0,44342.0,0.2448916]
[1641415143267,0.03924177,44350.0,44342.0,0.2448916]
[1641415143464,0.03924177,44350.0,44343.0,0.367494]
[1641415143662,0.004,44348.0,44342.0,0.003]
[1641415143862,0.367494,44347.0,44342.0,0.003]
[1641415144062,0.787494,44347.0,44342.0,0.003]
[1641415144264,0.05,44346.0,44342.0,0.003]
[1641415144463,0.056395,44344.0,44342.0,0.003]
[1641415144664,0.367494,44343.0,44342.0,0.003]
[1641415144864,0.417494,44343.0,44342.0,0.003]
[1641415145070,0.417494,44343.0,44328.0,0.00128733]
[1641415145071,2.227494,44343.0,44328.0,0.00128733]
[1641415145262,2.227494,44343.0,44315.0,0.0999]
[1641415145263,0.26682764,44342.0,44315.0,0.0999]
[1641415145464,0.056405,44331.0,44318.0,0.2499]
[1641415145663,0.056405,44329.0,44321.0,0.00124264]
[1641415145964,0.056405,44329.0,44318.0,0.2499]
[1641415145965,0.9159026,44328.0,44318.0,0.2499]
[1641415146167,0.367494,44327.0,44318.0,0.2499]
[1641415146363,0.1,44321.0,44318.0,0.2499]
[1641415146578,1.56,44319.0,44315.0,0.10161]
[1641415146809,0.056432,44317.0,44315.0,0.10161]
[1641415147008,0.61582604,44316.0,44315.0,0.09861]
[1641415147207,0.61582604,44316.0,44315.0,0.41296747]
[1641415147208,0.367494,44316.0,44315.0,0.41296747]
[1641415147407,0.05,44316.0,44315.0,0.41296747]
[1641415147610,0.05,44316.0,44315.0,0.31435747]
[1641415147806,0.042,44316.0,44315.0,0.31535747]
[1641415148006,0.092,44316.0,44315.0,0.001]
[1641415148209,0.09324274,44316.0,44315.0,0.001]
[1641415149108,0.056425,44315.0,44307.0,0.42169183]
[1641415149507,0.00244487,44316.0,44309.0,0.29102991]
[1641415149710,0.004,44315.0,44310.0,0.367494]
[1641415150967,0.00244487,44316.0,44310.0,0.367494]
[1641415151571,0.05886987,44316.0,44310.0,0.367494]
[1641415151769,0.09186987,44316.0,44310.0,0.370494]
[1641415152173,0.03544487,44316.0,44310.0,0.86845455]
[1641415152369,0.03544487,44316.0,44310.0,0.4717578]
[1641415152575,0.03544487,44316.0,44310.0,0.3717578]
[1641415152776,0.03544487,44316.0,44310.0,0.370494]
[1641415152972,0.056425,44315.0,44310.0,0.367494]
[1641415153372,0.00120213,44316.0,44305.0,0.00125371]
[1641415153572,0.00124282,44314.0,44305.0,0.00125371]
[1641415153777,0.00124282,44314.0,44283.0,0.4139]
[1641415153778,0.56848355,44304.0,44283.0,0.4139]
[1641415153982,0.05,44303.0,44283.0,0.4139]
[1641415154205,0.00121325,44302.0,44288.0,0.0012975]
[1641415154607,0.00241587,44302.0,44288.0,0.0012975]
[1641415154905,0.00241587,44302.0,44291.0,0.35710859]
[1641415155107,0.112889,44299.0,44291.0,0.004]
[1641415155411,0.60931956,44298.0,44291.0,0.004]
[1641415155608,0.1,44294.0,44291.0,0.004]
[1641415155813,2.34124401,44292.0,44271.0,0.004]
[1641415156009,2.64520301,44292.0,44272.0,0.00120683]
[1641415156208,0.00120784,44282.0,44272.0,0.93337862]
[1641415156407,2.09645683,44282.0,44272.0,0.93337862]
[1641415156609,0.47517684,44282.0,44281.0,0.0001]
[1641415157010,0.05120784,44282.0,44281.0,0.0001]
[1641415157211,0.056475,44283.0,44281.0,0.0001]
[1641415157408,0.00122561,44290.0,44281.0,0.0001]
[1641415157608,0.056461,44286.0,44281.0,0.0001]
[1641415157811,0.034,44283.0,44282.0,1.04]
[1641415158064,0.034,44283.0,44282.0,0.367494]
[1641415158258,0.034,44283.0,44281.0,0.0041]
[1641415158861,0.034,44283.0,44282.0,2.66848136]
[1641415159060,0.5552,44303.0,44282.0,2.66848136]
[1641415159061,0.5552,44303.0,44282.0,3.13722748]
[1641415159062,0.112897,44299.0,44282.0,3.13722748]
[1641415159262,0.00128856,44301.0,44283.0,0.367494]
[1641415159463,0.038,44307.0,44289.0,0.1144]
[1641415159662,0.27818738,44311.0,44301.0,0.52763584]
[1641415159663,0.056436,44305.0,44301.0,0.52763584]
[1641415159862,0.056436,44305.0,44299.0,0.27846681]
[1641415160063,0.056436,44305.0,44300.0,0.367494]
[1641415160262,0.112873,44305.0,44300.0,0.367494]
[1641415161166,0.056444,44299.0,44289.0,0.11563352]
[1641415161367,0.056446,44298.0,44290.0,0.367494]
[1641415161563,0.056446,44298.0,44289.0,0.35590335]
[1641415161803,0.056446,44298.0,44289.0,0.22263352]
[1641415162204,0.056446,44298.0,44290.0,0.51444966]
[1641415162205,0.056452,44297.0,44290.0,0.51444966]
[1641415162402,0.05645,44295.0,44290.0,0.51444966]
[1641415162604,0.05645,44295.0,44291.0,0.367494]
[1641415162805,0.01,44299.0,44291.0,0.367494]
[1641415163005,0.01,44299.0,44291.0,0.467494]
[1641415163209,0.00120262,44302.0,44290.0,0.51444966]
[1641415163405,0.056446,44301.0,44290.0,0.51444966]
[1641415163607,0.056446,44301.0,44289.0,0.11563352]
[1641415163608,0.056447,44297.0,44289.0,0.1144]
[1641415163805,0.00125255,44296.0,44290.0,0.004]
[1641415164008,0.112924,44294.0,44290.0,0.004]
[1641415164205,0.367494,44293.0,44290.0,0.004]
[1641415164406,0.0012434,44293.0,44290.0,0.004]
[1641415164605,0.0012434,44293.0,44292.0,0.26919065]
[1641415164805,0.0577054,44293.0,44292.0,1.37668465]
[1641415165008,0.0012434,44293.0,44292.0,1.37668465]
[1641415165207,0.0012434,44293.0,44292.0,2.97668465]
[1641415165208,0.00116393,44293.0,44292.0,2.97668465]
[1641415165495,0.03142107,44302.0,44293.0,0.367494]
[1641415165686,0.00042107,44302.0,44299.0,0.00128116]
[1641415165891,0.00042107,44302.0,44299.0,0.62083142]
[1641415166089,0.00042107,44302.0,44300.0,0.61928071]
[1641415166288,0.00042107,44302.0,44301.0,0.73134729]
[1641415166488,0.00042107,44302.0,44301.0,0.81472332]
[1641415166687,0.00042107,44302.0,44301.0,0.46472332]
[1641415167489,0.00042107,44302.0,44301.0,0.41472332]
[1641415167688,0.19852023,44319.0,44301.0,0.41472332]
[1641415167889,0.22986432,44322.0,44301.0,0.20599999]
[1641415168088,0.22986432,44322.0,44306.0,0.0012525]
[1641415168290,0.5972816,44317.0,44306.0,0.0012525]
[1641415168494,0.367642,44316.0,44306.0,0.0012525]
[1641415168692,0.056419,44324.0,44311.0,0.34773746]
[1641415168892,0.367642,44323.0,44306.0,0.00126442]
[1641415169091,0.2,44321.0,44301.0,0.05327029]
[1641415169311,0.05643014,44314.0,44301.0,0.05327029]
[1641415169512,0.05643,44308.0,44301.0,0.05327029]
[1641415169711,0.112856,44313.0,44301.0,0.05327029]
[1641415169911,0.112856,44313.0,44302.0,0.6184445]
[1641415170112,0.112862,44314.0,44302.0,0.1]
[1641415170316,0.64750632,44313.0,44301.0,0.011]
[1641415170514,0.22695289,44309.0,44302.0,1.2763285]
[1641415170712,0.056445,44305.0,44302.0,1.2763285]
[1641415170914,0.056444,44304.0,44302.0,1.2763285]
[1641415171314,0.05,44303.0,44302.0,1.2763285]
[1641415171917,0.05,44303.0,44301.0,1.2763285]
[1641415171918,0.032,44303.0,44301.0,1.2763285]
[1641415172116,0.032,44303.0,44302.0,2.707642]
[1641415172313,0.032,44303.0,44302.0,3.9839705]
[1641415172515,0.032,44303.0,44302.0,3.98524052]
[1641415172716,0.032,44303.0,44302.0,4.25334612]
[1641415172976,0.28934089,44318.0,44302.0,5.15429257]
[1641415173162,0.65426018,44317.0,44302.0,4.78665057]
[1641415173461,0.25342173,44316.0,44302.0,5.67256402]
[1641415173860,0.05643,44308.0,44302.0,5.67456402]
[1641415174060,0.05643,44308.0,44303.0,1.2763285]
[1641415174260,0.05643,44308.0,44305.0,0.25327463]
[1641415174461,0.05643,44308.0,44303.0,1.3763285]
[1641415174663,0.05643,44308.0,44304.0,0.1]
[1641415175063,0.056426,44310.0,44305.0,0.367642]
[1641415175263,0.056426,44310.0,44308.0,0.52143391]
[1641415175464,0.056426,44310.0,44309.0,0.27032515]
[1641415175663,0.056426,44310.0,44308.0,0.52143391]
[1641415175863,0.056426,44310.0,44308.0,0.004]
[1641415176268,0.056426,44310.0,44309.0,1.2763285]
[1641415177107,0.112858,44310.0,44309.0,1.2763285]
[1641415177509,0.162858,44310.0,44309.0,1.2763285]
[1641415177713,1.89126098,44310.0,44309.0,1.2763285]
[1641415177908,1.89126098,44310.0,44302.0,0.0152]
[1641415177909,1.00890298,44310.0,44303.0,0.9664285]
[1641415178108,0.056444,44307.0,44303.0,0.9664285]
[1641415178310,0.056442,44306.0,44303.0,0.9664285]
[1641415178510,0.056442,44306.0,44302.0,0.0152]
[1641415179310,0.056442,44306.0,44302.0,0.60957961]
[1641415179510,0.056442,44306.0,44302.0,0.0152]
[1641415179913,0.075442,44306.0,44302.0,0.0162]
[1641415180113,0.07517057,44306.0,44302.0,0.0162]
[1641415180559,0.424077,44305.0,44302.0,0.0162]
[1641415180759,0.480516,44305.0,44302.0,0.0162]
[1641415181161,0.480516,44305.0,44302.0,0.0152]
[1641415181162,0.33575489,44304.0,44302.0,0.0152]
[1641415181362,0.33575489,44304.0,44300.0,0.12]
[1641415181363,0.367642,44303.0,44300.0,0.12]
[1641415181563,0.112908,44302.0,44300.0,0.12]
[1641415181757,0.367642,44301.0,44300.0,0.12]
[1641415182163,0.008,44303.0,44300.0,0.12]
[1641415182359,0.008,44303.0,44302.0,0.00129583]
[1641415182564,5.9552732,44321.0,44303.0,2.18]
[1641415182760,0.056429,44309.0,44303.0,2.18]
[1641415183062,0.056429,44309.0,44305.0,0.5762272]
[1641415183262,0.056431,44312.0,44302.0,0.00129583]
[1641415183563,0.2,44310.0,44300.0,0.12]
[1641415183861,0.00121457,44316.0,44302.0,0.002]
[1641415183862,0.056438,44306.0,44302.0,0.002]
[1641415184064,0.367642,44305.0,44302.0,0.002]
[1641415184325,0.6246786,44305.0,44302.0,0.002]
[1641415184520,0.31841,44304.0,44302.0,0.002]
[1641415184724,0.2312734,44303.0,44302.0,0.002]
[1641415184922,0.5989154,44303.0,44302.0,0.002]
[1641415185122,0.056447,44302.0,44300.0,0.12]
[1641415185322,0.424089,44301.0,44300.0,0.12]
[1641415185523,0.474089,44301.0,44300.0,0.12]
[1641415185922,0.106447,44301.0,44300.0,0.12]
[1641415186327,0.112894,44302.0,44300.0,0.12]
[1641415186524,0.24381637,44316.0,44301.0,0.367642]
[1641415186729,0.01368437,44316.0,44304.0,0.00128706]
[1641415186924,0.367642,44315.0,44305.0,0.26301033]
[1641415187124,0.367642,44315.0,44307.0,0.61707605]
[1641415187323,0.225719,44313.0,44307.0,0.61707605]
[1641415187525,0.056433,44308.0,44300.0,0.12]
[1641415187966,0.056432,44310.0,44307.0,0.001]
[1641415188161,0.367642,44309.0,44307.0,0.001]
[1641415188362,0.593386,44309.0,44307.0,0.001]
[1641415188565,0.48051,44309.0,44307.0,0.001]
[1641415188761,0.162868,44309.0,44307.0,0.001]
[1641415188961,0.367642,44308.0,44307.0,0.001]
[1641415189763,0.112871,44307.0,44304.0,0.6420845]
[1641415189963,0.056436,44306.0,44304.0,0.6420845]
[1641415190362,0.056436,44306.0,44300.0,0.12]
[1641415190363,0.169311,44306.0,44300.0,0.12]
[1641415190564,0.05643941,44304.0,44289.0,0.00126166]
[1641415190767,0.05643941,44304.0,44280.0,1.0978]
[1641415190768,0.00128612,44302.0,44283.0,0.00124361]
[1641415190964,0.00128612,44302.0,44285.0,0.33125522]
[1641415190965,0.056454,44294.0,44285.0,0.33125522]
[1641415191164,0.056454,44294.0,44288.0,0.27221196]
[1641415191369,0.106454,44294.0,44290.0,0.61141807]
[1641415191565,0.219356,44294.0,44290.0,0.61141807]
[1641415191806,0.219356,44294.0,44290.0,0.61241807]
[1641415192405,0.056453,44293.0,44290.0,0.61241807]
[1641415192606,0.106453,44293.0,44290.0,0.61241807]
[1641415193007,0.162906,44293.0,44290.0,0.61241807]
[1641415193207,0.162906,44293.0,44290.0,0.61141807]
[1641415193408,0.162906,44293.0,44291.0,1.27673157]
[1641415193810,0.056453,44292.0,44291.0,1.27673157]
[1641415194011,0.162906,44293.0,44291.0,1.27673157]
[1641415195567,0.162906,44293.0,44292.0,0.367642]
[1641415196166,0.05,44293.0,44292.0,0.61271416]
[1641415196370,0.112883,44301.0,44292.0,1.98944573]
[1641415196569,0.9472,44311.0,44297.0,0.43334418]
[1641415196772,0.41347128,44310.0,44297.0,0.00125541]
[1641415196971,0.41347128,44310.0,44296.0,0.06]
[1641415197174,0.05645689,44301.0,44296.0,0.06]
[1641415197370,0.056457,44299.0,44296.0,0.06]
[1641415197572,0.367642,44298.0,44296.0,0.06]
[1641415197770,0.056457,44299.0,44296.0,0.06]
[1641415197969,0.05,44298.0,44296.0,0.06]
[1641415198170,0.056457,44299.0,44296.0,0.06]
[1641415198571,0.367642,44298.0,44296.0,0.06]
[1641415198870,0.467642,44298.0,44296.0,0.06]
[1641415199072,0.80833489,44298.0,44296.0,0.06]
[1641415199928,0.48055746,44298.0,44296.0,0.06]
[1641415200137,0.056458,44299.0,44296.0,0.06129528]
[1641415200332,0.056437,44301.0,44297.0,0.367642]
[1641415200529,0.00129159,44315.0,44297.0,0.467642]
[1641415200729,0.417642,44314.0,44296.0,0.06129528]
[1641415200929,0.417642,44314.0,44302.0,0.53222962]
[1641415200930,0.25151028,44309.0,44302.0,0.53222962]
[1641415201230,0.00129159,44315.0,44302.0,0.53222962]
[1641415201231,0.112881,44307.0,44302.0,0.53222962]
[1641415201430,0.1128843,44306.0,44302.0,0.53222962]
[1641415201629,0.1128843,44306.0,44297.0,1.53564384]
[1641415201630,0.056441,44304.0,44297.0,1.53564384]
[1641415201930,0.056441,44304.0,44296.0,0.06129528]
[1641415202129,0.256441,44304.0,44296.0,0.06]
[1641415202335,0.112919,44295.0,44281.0,0.0001]
[1641415202530,0.11291952,44289.0,44281.0,0.0001]
[1641415202728,0.112919,44291.0,44283.0,0.80828302]
[1641415202729,0.112921,44291.0,44283.0,0.80828302]
[1641415202984,0.112919,44295.0,44284.0,0.87421167]
[1641415203181,0.0387,44297.0,44289.0,0.00126217]
[1641415203378,0.0387,44297.0,44296.0,0.00123407]
[1641415203577,0.0387,44297.0,44296.0,1.38123407]
[1641415203776,0.0387,44297.0,44296.0,1.74891007]
[1641415203977,0.0517,44297.0,44296.0,1.752676]
[1641415204177,0.0517,44297.0,44296.0,1.75394878]
[1641415204580,0.0517,44297.0,44296.0,1.752676]
[1641415205179,0.0387,44297.0,44296.0,1.747676]
[1641415205578,0.0387,44297.0,44296.0,3.02423727]
[1641415205979,0.0397,44297.0,44296.0,3.02823727]
[1641415206586,0.056439,44303.0,44296.0,3.02823727]
[1641415206587,0.2499,44319.0,44297.0,0.00122426]
[1641415206812,0.32790465,44316.0,44310.0,0.00127697]
[1641415207013,0.42410141,44315.0,44302.0,0.00125053]
[1641415207214,0.056427,44313.0,44302.0,0.00125053]
[1641415207412,0.60028742,44311.0,44302.0,0.00125053]
[1641415207621,0.92159525,44311.0,44302.0,0.00125053]
[1641415207915,0.16933158,44306.0,44302.0,0.003]
[1641415208117,0.11289179,44305.0,44302.0,0.003]
[1641415208316,0.367676,44304.0,44302.0,0.003]
[1641415208515,0.05,44303.0,44302.0,0.003]
[1641415208717,0.417676,44303.0,44302.0,0.003]
[1641415209116,0.417676,44303.0,44288.0,0.4032882]
[1641415209318,0.056444,44298.0,44290.0,0.00122899]
[1641415209518,0.112885,44301.0,44283.0,1.78719395]
[1641415209519,0.00125918,44301.0,44283.0,1.78719395]
[1641415209718,0.1,44294.0,44289.0,1.2765483]
[1641415209918,2.55991192,44291.0,44290.0,0.006]
[1641415210122,0.367676,44291.0,44290.0,0.006]
[1641415210317,0.00129024,44291.0,44290.0,0.006]
[1641415210566,0.056468,44291.0,44290.0,0.006]
[1641415210766,0.106468,44291.0,44290.0,0.006]
[1641415211164,0.474144,44291.0,44284.0,0.0136848]
[1641415211366,0.05647198,44287.0,44284.0,0.0136848]
[1641415211565,0.056474,44286.0,44284.0,0.0136848]
[1641415211764,0.056472,44285.0,44284.0,0.0136848]
[1641415211972,0.66873283,44285.0,44284.0,0.0136848]
[1641415212168,1.86,44284.0,44281.0,0.0001]
[1641415212369,1.86,44284.0,44271.0,0.004]
[1641415212370,1.28,44281.0,44271.0,0.004]
[1641415212568,0.00127823,44272.0,44271.0,0.004]
[1641415212776,1.57544723,44272.0,44271.0,0.004]
[1641415212967,0.42544723,44272.0,44271.0,0.004]
[1641415213366,0.424169,44272.0,44271.0,0.514]
[1641415213567,0.056493,44272.0,44271.0,0.514]
[1641415213768,0.056489,44273.0,44271.0,0.514]
[1641415213965,0.052,44272.0,44271.0,1.09309053]
[1641415214208,0.002,44272.0,44271.0,1.09309053]
[1641415214409,0.002,44272.0,44271.0,0.541]
[1641415214810,0.058483,44272.0,44271.0,0.541]
[1641415215313,0.056483,44272.0,44271.0,2.52499441]
[1641415215508,0.056483,44272.0,44271.0,0.514]
[1641415215810,0.056483,44272.0,44271.0,0.004]
[1641415216009,0.056483,44272.0,44271.0,0.04]
[1641415216010,0.424159,44272.0,44271.0,0.04]
[1641415216310,0.424159,44272.0,44271.0,0.97]
[1641415216510,0.056483,44272.0,44271.0,0.04]
[1641415217109,0.056483,44272.0,44271.0,0.004]